[Event "*** Titled Tuesday 3|2 Blitz"]
[Site "Chess.com"]
[Date "2015.10.06"]
[Round "4"]
[White "tac49"]
[Black "Ar4uha"]
[Result "1/2-1/2"]
[WhiteElo "2462"]
[BlackElo "2398"]
[TimeControl "180+2"]
[EndTime "11:50:57 PDT"]
[Termination "Game drawn by repetition"]

1. e4 {[%clk 0:03:00.9]} 1... d5 {[%clk 0:03:00.1]} 2. exd5 {[%clk 0:03:01.3]}
2... Nf6 {[%clk 0:03:01.5]} 3. d4 {[%clk 0:03:01]} 3... Nxd5 {[%clk 0:03:02.8]}
4. Nf3 {[%clk 0:03:01.5]} 4... g6 {[%clk 0:03:03.9]} 5. c4 {[%clk 0:03:02]} 5...
Nb6 {[%clk 0:03:05.2]} 6. Nc3 {[%clk 0:03:03.3]} 6... Bg7 {[%clk 0:03:06.6]} 7.
Be3 {[%clk 0:03:04.3]} 7... Nc6 {[%clk 0:03:07.1]} 8. Rc1 {[%clk 0:02:59.3]}
8... O-O {[%clk 0:03:07.2]} 9. Be2 {[%clk 0:02:59.7]} 9... Bg4 {[%clk
0:03:07.5]} 10. d5 {[%clk 0:02:41.5]} 10... Bxf3 {[%clk 0:02:57.3]} 11. Bxf3
{[%clk 0:02:42.9]} 11... Ne5 {[%clk 0:02:57.8]} 12. b3 {[%clk 0:02:40.8]} 12...
c6 {[%clk 0:02:59]} 13. O-O {[%clk 0:02:40.7]} 13... Nxf3+ {[%clk 0:02:56.6]}
14. Qxf3 {[%clk 0:02:40.3]} 14... cxd5 {[%clk 0:02:57.4]} 15. Nxd5 {[%clk
0:02:36.4]} 15... Nxd5 {[%clk 0:02:56.6]} 16. Qxd5 {[%clk 0:02:29.6]} 16... Qxd5
{[%clk 0:02:57.2]} 17. cxd5 {[%clk 0:02:31.5]} 17... Rfc8 {[%clk 0:02:55.1]} 18.
Rc4 {[%clk 0:02:15]} 18... b5 {[%clk 0:02:48.7]} 19. Rc6 {[%clk 0:02:14.2]}
19... a6 {[%clk 0:02:45.4]} 20. g4 {[%clk 0:01:50.5]} 20... Be5 {[%clk
0:02:44.4]} 21. f4 {[%clk 0:01:38.1]} 21... Bd6 {[%clk 0:02:44.8]} 22. Kg2
{[%clk 0:01:39.5]} 22... Rd8 {[%clk 0:02:45.2]} 23. Kf3 {[%clk 0:01:38.7]} 23...
f5 {[%clk 0:02:44.5]} 24. gxf5 {[%clk 0:01:36.8]} 24... gxf5 {[%clk 0:02:46.4]}
25. Rg1+ {[%clk 0:01:38.3]} 25... Kf7 {[%clk 0:02:47.6]} 26. Rg5 {[%clk
0:01:39.2]} 26... h6 {[%clk 0:02:41.1]} 27. Rxf5+ {[%clk 0:01:34]} 27... Kg6
{[%clk 0:02:41.8]} 28. Ke4 {[%clk 0:01:34]} 28... Rac8 {[%clk 0:02:36.7]} 29. h4
{[%clk 0:01:29.8]} 29... e6 {[%clk 0:01:59.3]} 30. h5+ {[%clk 0:01:30.6]} 30...
Kg7 {[%clk 0:02:00.9]} 31. Bd4+ {[%clk 0:01:09.9]} 31... Kg8 {[%clk 0:02:01.8]}
32. Rf6 {[%clk 0:00:18.3]} 32... exd5+ {[%clk 0:02:01.6]} 33. Kxd5 {[%clk
0:00:20.2]} 33... Be7+ {[%clk 0:01:57.9]} 34. Ke4 {[%clk 0:00:21.5]} 34... Bxf6
{[%clk 0:01:45.4]} 35. Rxf6 {[%clk 0:00:23.4]} 35... Rc2 {[%clk 0:01:46.5]} 36.
Rxh6 {[%clk 0:00:21.3]} 36... Rd7 {[%clk 0:01:38.6]} 37. Rh8+ {[%clk 0:00:20.1]}
37... Kf7 {[%clk 0:01:39.5]} 38. Rh7+ {[%clk 0:00:21.2]} 38... Ke8 {[%clk
0:01:40.2]} 39. Rxd7 {[%clk 0:00:22.2]} 39... Kxd7 {[%clk 0:01:40.8]} 40. Kf5
{[%clk 0:00:17.1]} 40... Rh2 {[%clk 0:01:02.2]} 41. Kg6 {[%clk 0:00:17]} 41...
Ke7 {[%clk 0:01:04.1]} 42. h6 {[%clk 0:00:13.5]} 42... Rg2+ {[%clk 0:01:02.1]}
43. Kf5 {[%clk 0:00:13.3]} 43... Rh2 {[%clk 0:01:03.6]} 44. Kg6 {[%clk
0:00:12.9]} 44... Rg2+ {[%clk 0:00:58.9]} 45. Kf5 {[%clk 0:00:14.2]} 45... Rh2
{[%clk 0:00:57.7]} 46. Kg6 {[%clk 0:00:11.2]} 46... Rg2+ {[%clk 0:00:47]} 47.
Kf5 {[%clk 0:00:12]} 1/2-1/2

[Event "*** Titled Tuesday 3|2 Blitz"]
[Site "Chess.com"]
[Date "2015.10.06"]
[Round "4"]
[White "Rickstereo"]
[Black "metalbattler"]
[Result "0-1"]
[WhiteElo "2076"]
[BlackElo "1933"]
[TimeControl "180+2"]
[EndTime "11:51:07 PDT"]
[Termination "metalbattler won by resignation"]

1. d4 {[%clk 0:03:01.9]} 1... d5 {[%clk 0:02:56.6]} 2. c4 {[%clk 0:03:00.5]}
2... c6 {[%clk 0:02:57.6]} 3. Nf3 {[%clk 0:03:00]} 3... Nf6 {[%clk 0:02:57.9]}
4. e3 {[%clk 0:03:00.8]} 4... e6 {[%clk 0:02:57.8]} 5. Nc3 {[%clk 0:03:00.9]}
5... Nbd7 {[%clk 0:02:58.5]} 6. Bd3 {[%clk 0:03:01.5]} 6... dxc4 {[%clk
0:02:59.4]} 7. Bxc4 {[%clk 0:03:02.8]} 7... b5 {[%clk 0:03:01]} 8. Bd3 {[%clk
0:02:53.7]} 8... Bb7 {[%clk 0:03:01.7]} 9. O-O {[%clk 0:02:50.7]} 9... a6 {[%clk
0:03:02.6]} 10. Qe2 {[%clk 0:02:48.4]} 10... c5 {[%clk 0:03:03.4]} 11. Rd1
{[%clk 0:02:23.1]} 11... cxd4 {[%clk 0:02:48.7]} 12. exd4 {[%clk 0:02:19.2]}
12... Bd6 {[%clk 0:02:42.5]} 13. Ne4 {[%clk 0:02:11.2]} 13... Nxe4 {[%clk
0:02:40]} 14. Bxe4 {[%clk 0:02:11.7]} 14... Bxe4 {[%clk 0:02:39.7]} 15. Qxe4
{[%clk 0:02:12.9]} 15... Nf6 {[%clk 0:02:40.8]} 16. Qh4 {[%clk 0:02:13.1]} 16...
h6 {[%clk 0:02:33.3]} 17. Be3 {[%clk 0:02:04.1]} 17... O-O {[%clk 0:02:31.7]}
18. Ne5 {[%clk 0:02:04.8]} 18... Nd5 {[%clk 0:02:26.5]} 19. Qe4 {[%clk
0:01:48.7]} 19... Rc8 {[%clk 0:02:19.7]} 20. Rac1 {[%clk 0:01:47.5]} 20... Qb6
{[%clk 0:01:34]} 21. Nd7 {[%clk 0:01:43.8]} 21... Bxh2+ {[%clk 0:01:09.7]} 22.
Kh1 {[%clk 0:01:27.2]} 22... Qd6 {[%clk 0:01:00.8]} 23. Nxf8 {[%clk 0:01:24.6]}
23... Rxf8 {[%clk 0:00:54.4]} 24. Rc2 {[%clk 0:00:18.8]} 24... f5 {[%clk
0:00:50.8]} 25. Qf3 {[%clk 0:00:16.7]} 25... Qb8 {[%clk 0:00:20.1]} 26. Rc6
{[%clk 0:00:14.5]} 26... Bd6 {[%clk 0:00:17.5]} 27. Rdc1 {[%clk 0:00:12.9]}
27... Nb4 {[%clk 0:00:17]} 28. Rxd6 {[%clk 0:00:06.5]} 28... Qxd6 {[%clk
0:00:17.4]} 29. a3 {[%clk 0:00:07.8]} 29... Nd5 {[%clk 0:00:17.3]} 30. Rc5
{[%clk 0:00:07.5]} 30... Nxe3 {[%clk 0:00:15.3]} 31. Qxe3 {[%clk 0:00:07.3]}
31... Rf6 {[%clk 0:00:16.9]} 32. Qc3 {[%clk 0:00:05.4]} 32... f4 {[%clk
0:00:16.7]} 33. Rc8+ {[%clk 0:00:06.2]} 33... Kh7 {[%clk 0:00:17.2]} 34. Qd3+
{[%clk 0:00:07.7]} 34... g6 {[%clk 0:00:18]} 35. Qc3 {[%clk 0:00:07.7]} 35...
Rf7 {[%clk 0:00:16.6]} 36. Rc6 {[%clk 0:00:08.1]} 36... Qd5 {[%clk 0:00:17.3]}
37. Rxa6 {[%clk 0:00:09.3]} 37... f3 {[%clk 0:00:18]} 38. g3 {[%clk 0:00:10.7]}
38... Qh5+ {[%clk 0:00:16.8]} 39. Kg1 {[%clk 0:00:11.5]} 39... Qh3 {[%clk
0:00:17.9]} 0-1

[Event "*** Titled Tuesday 3|2 Blitz"]
[Site "Chess.com"]
[Date "2015.10.06"]
[Round "4"]
[White "1stSecond"]
[Black "Keranke"]
[Result "0-1"]
[WhiteElo "2388"]
[BlackElo "2587"]
[TimeControl "180+2"]
[EndTime "11:51:54 PDT"]
[Termination "Keranke won by checkmate"]

1. d4 {[%clk 0:03:00.5]} 1... g6 {[%clk 0:02:59.3]} 2. c4 {[%clk 0:02:59.9]}
2... Bg7 {[%clk 0:03:00.7]} 3. Nc3 {[%clk 0:02:59.4]} 3... d6 {[%clk 0:03:02]}
4. Nf3 {[%clk 0:02:59.5]} 4... Nf6 {[%clk 0:03:02.7]} 5. h3 {[%clk 0:03:00.2]}
5... O-O {[%clk 0:03:03]} 6. e4 {[%clk 0:03:01.6]} 6... a6 {[%clk 0:03:04.4]} 7.
Be3 {[%clk 0:03:00.3]} 7... c5 {[%clk 0:02:59.6]} 8. d5 {[%clk 0:03:01.1]} 8...
b5 {[%clk 0:02:59.9]} 9. cxb5 {[%clk 0:03:01.8]} 9... axb5 {[%clk 0:03:01.8]}
10. Bxb5 {[%clk 0:03:01.9]} 10... Nxe4 {[%clk 0:03:03]} 11. O-O {[%clk
0:02:34.8]} 11... Bxc3 {[%clk 0:03:00.1]} 12. bxc3 {[%clk 0:02:35.5]} 12... Nxc3
{[%clk 0:03:01.8]} 13. Qb3 {[%clk 0:02:33.3]} 13... Nxb5 {[%clk 0:03:03.1]} 14.
Qxb5 {[%clk 0:02:35.2]} 14... Ba6 {[%clk 0:02:50.5]} 15. Qb2 {[%clk 0:02:36.1]}
15... Bxf1 {[%clk 0:02:41.2]} 16. Bh6 {[%clk 0:02:37]} 16... f6 {[%clk
0:02:42.7]} 17. Ng5 {[%clk 0:02:36.1]} 17... Bc4 {[%clk 0:02:31.3]} 18. Ne6
{[%clk 0:02:35.1]} 18... Qc8 {[%clk 0:02:17.6]} 19. Nxf8 {[%clk 0:02:33.3]}
19... Bxd5 {[%clk 0:02:17.5]} 20. Qe2 {[%clk 0:02:22.5]} 20... Nc6 {[%clk
0:02:11.8]} 21. Rd1 {[%clk 0:02:19.5]} 21... Qf5 {[%clk 0:02:01]} 22. Rd2 {[%clk
0:01:52.3]} 22... Rxf8 {[%clk 0:01:49.1]} 23. Bxf8 {[%clk 0:01:51.1]} 23... Kxf8
{[%clk 0:01:51]} 24. a4 {[%clk 0:01:46.2]} 24... Nd4 {[%clk 0:01:34.1]} 25. Qe3
{[%clk 0:01:42.7]} 25... Qb1+ {[%clk 0:01:25.6]} 26. Kh2 {[%clk 0:01:43.5]}
26... g5 {[%clk 0:01:24.2]} 27. a5 {[%clk 0:01:41.7]} 27... Qa1 {[%clk
0:01:07.1]} 28. h4 {[%clk 0:01:38.3]} 28... h6 {[%clk 0:01:05.1]} 29. hxg5
{[%clk 0:01:38.9]} 29... hxg5 {[%clk 0:01:06.8]} 30. Qh3 {[%clk 0:01:33.6]}
30... Qxa5 {[%clk 0:01:01.3]} 31. Qh6+ {[%clk 0:01:32.6]} 31... Ke8 {[%clk
0:00:59.8]} 32. Rb2 {[%clk 0:01:30.8]} 32... Nb3 {[%clk 0:00:52.6]} 33. Re2
{[%clk 0:01:14.6]} 33... Nd4 {[%clk 0:00:38.1]} 34. Rb2 {[%clk 0:01:10]} 34...
Bb3 {[%clk 0:00:37.6]} 35. f4 {[%clk 0:00:58.4]} 35... Qc3 {[%clk 0:00:34]} 36.
Rb1 {[%clk 0:00:35.5]} 36... Qe3 {[%clk 0:00:30.1]} 37. fxg5 {[%clk 0:00:28.5]}
37... Qxg5 {[%clk 0:00:23.4]} 38. Qh8+ {[%clk 0:00:29]} 38... Qg8 {[%clk
0:00:21.6]} 39. Qh5+ {[%clk 0:00:28.8]} 39... Kd7 {[%clk 0:00:21.3]} 40. Qh3+
{[%clk 0:00:29.1]} 40... f5 {[%clk 0:00:21.6]} 41. Ra1 {[%clk 0:00:29.3]} 41...
Qg4 {[%clk 0:00:20.6]} 42. Ra7+ {[%clk 0:00:30.5]} 42... Kc6 {[%clk 0:00:20.8]}
43. Qe3 {[%clk 0:00:21.6]} 43... Bd5 {[%clk 0:00:16.5]} 44. Qd2 {[%clk
0:00:15.9]} 44... f4 {[%clk 0:00:11.5]} 45. Ra6+ {[%clk 0:00:15.8]} 45... Kd7
{[%clk 0:00:11.2]} 46. Ra7+ {[%clk 0:00:17]} 46... Ke8 {[%clk 0:00:12.5]} 47.
Ra3 {[%clk 0:00:16.1]} 47... f3 {[%clk 0:00:12.5]} 48. g3 {[%clk 0:00:15.4]}
48... Ne2 {[%clk 0:00:10.9]} 49. Qe1 {[%clk 0:00:08.1]} 49... Qh5# {[%clk
0:00:11.8]} 0-1

[Event "*** Titled Tuesday 3|2 Blitz"]
[Site "Chess.com"]
[Date "2015.10.06"]
[Round "4"]
[White "Quinten94"]
[Black "PowerThinking2650"]
[Result "0-1"]
[WhiteElo "2280"]
[BlackElo "2095"]
[TimeControl "180+2"]
[EndTime "11:51:55 PDT"]
[Termination "PowerThinking2650 won by resignation"]

1. e4 {[%clk 0:03:01.9]} 1... e5 {[%clk 0:03:00.7]} 2. Nf3 {[%clk 0:03:03]} 2...
Nc6 {[%clk 0:03:01.7]} 3. Bb5 {[%clk 0:03:04.1]} 3... a6 {[%clk 0:03:02.6]} 4.
Ba4 {[%clk 0:03:05.4]} 4... Nf6 {[%clk 0:03:03]} 5. O-O {[%clk 0:03:06.2]} 5...
Be7 {[%clk 0:03:03.5]} 6. Re1 {[%clk 0:03:06.4]} 6... b5 {[%clk 0:03:04.5]} 7.
Bb3 {[%clk 0:03:07.8]} 7... d6 {[%clk 0:03:06]} 8. a4 {[%clk 0:03:09]} 8... Bg4
{[%clk 0:03:06.8]} 9. c3 {[%clk 0:03:10]} 9... O-O {[%clk 0:03:03.1]} 10. h3
{[%clk 0:03:09.9]} 10... Bh5 {[%clk 0:02:56.8]} 11. d3 {[%clk 0:02:55.6]} 11...
Na5 {[%clk 0:02:56.4]} 12. Bc2 {[%clk 0:02:45.3]} 12... c5 {[%clk 0:02:57]} 13.
Nbd2 {[%clk 0:02:46.5]} 13... b4 {[%clk 0:02:52.1]} 14. Nf1 {[%clk 0:02:47.2]}
14... Rb8 {[%clk 0:02:47.3]} 15. Ng3 {[%clk 0:02:47.1]} 15... b3 {[%clk
0:02:37.3]} 16. Nxh5 {[%clk 0:02:45.4]} 16... Nxh5 {[%clk 0:02:32.6]} 17. Bb1
{[%clk 0:02:46.5]} 17... Nf6 {[%clk 0:02:05.2]} 18. d4 {[%clk 0:02:42.1]} 18...
Qc7 {[%clk 0:01:58.5]} 19. Bd3 {[%clk 0:02:37.2]} 19... c4 {[%clk 0:01:49.7]}
20. Bf1 {[%clk 0:02:37.5]} 20... Rfe8 {[%clk 0:01:41.6]} 21. g3 {[%clk
0:02:27.8]} 21... h6 {[%clk 0:01:42]} 22. Nh4 {[%clk 0:02:08.6]} 22... Bf8
{[%clk 0:01:42.1]} 23. Nf5 {[%clk 0:02:01.7]} 23... Rbd8 {[%clk 0:01:12.2]} 24.
d5 {[%clk 0:01:58.3]} 24... Kh7 {[%clk 0:00:53.2]} 25. Qf3 {[%clk 0:01:58.6]}
25... Ng8 {[%clk 0:00:48.2]} 26. h4 {[%clk 0:01:56.6]} 26... g6 {[%clk
0:00:48.7]} 27. Ne3 {[%clk 0:01:57.4]} 27... Bg7 {[%clk 0:00:45.8]} 28. Qe2
{[%clk 0:01:45.2]} 28... Rc8 {[%clk 0:00:43.6]} 29. h5 {[%clk 0:01:40.9]} 29...
Ne7 {[%clk 0:00:38.3]} 30. Bh3 {[%clk 0:01:38.3]} 30... Rb8 {[%clk 0:00:37.1]}
31. Kg2 {[%clk 0:01:39.2]} 31... Rf8 {[%clk 0:00:37.5]} 32. Rh1 {[%clk
0:01:39.1]} 32... g5 {[%clk 0:00:27.3]} 33. Nf5 {[%clk 0:01:33.6]} 33... Nxf5
{[%clk 0:00:27.4]} 34. Bxf5+ {[%clk 0:01:34.2]} 34... Kg8 {[%clk 0:00:28.3]} 35.
Qg4 {[%clk 0:01:16.7]} 35... Rfe8 {[%clk 0:00:20.9]} 36. f4 {[%clk 0:01:09.3]}
36... exf4 {[%clk 0:00:21.7]} 37. gxf4 {[%clk 0:01:09.4]} 37... f6 {[%clk
0:00:22.5]} 38. Be6+ {[%clk 0:01:03.6]} 38... Kh8 {[%clk 0:00:21.1]} 39. Bd2
{[%clk 0:01:00.3]} 39... Nb7 {[%clk 0:00:20.5]} 40. Raf1 {[%clk 0:00:43.4]}
40... Nc5 {[%clk 0:00:21.1]} 41. fxg5 {[%clk 0:00:44.3]} 41... fxg5 {[%clk
0:00:21.6]} 42. Rf7 {[%clk 0:00:41.8]} 42... Re7 {[%clk 0:00:22.7]} 43. Rhf1
{[%clk 0:00:39.7]} 43... Nxe6 {[%clk 0:00:22.5]} 44. dxe6 {[%clk 0:00:40.9]}
44... Rbe8 {[%clk 0:00:21.6]} 45. Be3 {[%clk 0:00:29.3]} 45... Qc8 {[%clk
0:00:22.5]} 46. Bd4 {[%clk 0:00:13.5]} 46... Bxd4 {[%clk 0:00:19.1]} 47. Qf5
{[%clk 0:00:11.1]} 47... Bg7 {[%clk 0:00:15.7]} 48. Qg6 {[%clk 0:00:12]} 48...
Rxf7 {[%clk 0:00:11.8]} 49. exf7 {[%clk 0:00:09.4]} 49... Rf8 {[%clk 0:00:12]}
50. Rf5 {[%clk 0:00:08.4]} 50... Qd7 {[%clk 0:00:11.1]} 51. Kh3 {[%clk
0:00:08.2]} 51... Qe7 {[%clk 0:00:11.3]} 52. Kg3 {[%clk 0:00:09.6]} 52... Qxe4
{[%clk 0:00:11.9]} 53. Rf6 {[%clk 0:00:10.6]} 53... Qxg6 {[%clk 0:00:12.6]} 54.
Rxg6 {[%clk 0:00:12]} 54... Rxf7 {[%clk 0:00:13.8]} 0-1

[Event "*** Titled Tuesday 3|2 Blitz"]
[Site "Chess.com"]
[Date "2015.10.06"]
[Round "4"]
[White "AndreyOstrovskiy"]
[Black "StellarChessPro"]
[Result "1/2-1/2"]
[WhiteElo "2370"]
[BlackElo "2234"]
[TimeControl "180+2"]
[EndTime "11:52:04 PDT"]
[Termination "Game drawn by agreement"]

1. e4 {[%clk 0:03:01.9]} 1... c6 {[%clk 0:03:01]} 2. d4 {[%clk 0:03:01.2]} 2...
d5 {[%clk 0:03:02.1]} 3. exd5 {[%clk 0:03:02.3]} 3... cxd5 {[%clk 0:03:03.3]} 4.
Bd3 {[%clk 0:03:02.8]} 4... Nf6 {[%clk 0:03:04.7]} 5. c3 {[%clk 0:03:04.2]} 5...
Nc6 {[%clk 0:03:05.8]} 6. Bf4 {[%clk 0:03:05.2]} 6... e6 {[%clk 0:03:07.1]} 7.
Nf3 {[%clk 0:03:05.9]} 7... Bd6 {[%clk 0:03:09]} 8. Bg5 {[%clk 0:03:05.3]} 8...
h6 {[%clk 0:03:10]} 9. Bh4 {[%clk 0:03:06]} 9... O-O {[%clk 0:03:11]} 10. Nbd2
{[%clk 0:03:07]} 10... a6 {[%clk 0:03:11.9]} 11. O-O {[%clk 0:03:06.5]} 11...
Rb8 {[%clk 0:03:12.3]} 12. a4 {[%clk 0:03:06.1]} 12... a5 {[%clk 0:03:12.5]} 13.
Re1 {[%clk 0:03:05.6]} 13... b6 {[%clk 0:03:13.5]} 14. Nf1 {[%clk 0:03:03]}
14... Bb7 {[%clk 0:03:14.6]} 15. Bc2 {[%clk 0:03:03.3]} 15... Be7 {[%clk
0:03:14.1]} 16. Qd3 {[%clk 0:03:03]} 16... Ne4 {[%clk 0:03:10.8]} 17. Bxe7
{[%clk 0:03:02.9]} 17... Qxe7 {[%clk 0:03:10.6]} 18. Ng3 {[%clk 0:03:04.2]}
18... f5 {[%clk 0:03:11.4]} 19. Nd2 {[%clk 0:02:58.3]} 19... Qf7 {[%clk
0:03:07.9]} 20. f3 {[%clk 0:02:56.1]} 20... Nxg3 {[%clk 0:03:08]} 21. hxg3
{[%clk 0:02:57.4]} 21... Rbd8 {[%clk 0:03:06.1]} 22. Nf1 {[%clk 0:02:49.5]}
22... Qf6 {[%clk 0:03:05.1]} 23. Qe3 {[%clk 0:02:48]} 23... Rde8 {[%clk
0:03:04.6]} 24. Nd2 {[%clk 0:02:46.1]} 24... e5 {[%clk 0:03:04.4]} 25. dxe5
{[%clk 0:02:46.3]} 25... Nxe5 {[%clk 0:03:02.4]} 26. Qd4 {[%clk 0:02:46.7]}
26... Nc4 {[%clk 0:02:56.5]} 27. Qxf6 {[%clk 0:02:37.3]} 27... Rxe1+ {[%clk
0:02:56.9]} 28. Rxe1 {[%clk 0:02:39.2]} 28... Rxf6 {[%clk 0:02:54.9]} 29. Nxc4
{[%clk 0:02:35.6]} 29... dxc4 {[%clk 0:02:56.8]} 30. Re5 {[%clk 0:02:34.2]}
30... g6 {[%clk 0:02:54.3]} 31. Bd1 {[%clk 0:02:34.5]} 31... Rd6 {[%clk
0:02:42.2]} 32. Be2 {[%clk 0:02:35.5]} 32... Ba6 {[%clk 0:02:43.1]} 33. Kf2
{[%clk 0:02:30.7]} 33... Kf7 {[%clk 0:02:38.2]} 34. Ke3 {[%clk 0:02:31.9]} 34...
Kf6 {[%clk 0:02:39]} 35. f4 {[%clk 0:02:31.4]} 35... g5 {[%clk 0:02:37]} 36. Re8
{[%clk 0:02:27.9]} 36... g4 {[%clk 0:02:25.2]} 37. Ra8 {[%clk 0:02:20.1]} 37...
Bb7 {[%clk 0:02:25.2]} 38. Rh8 {[%clk 0:02:14.6]} 38... Kg7 {[%clk 0:02:24.1]}
39. Re8 {[%clk 0:02:12]} 39... Bxg2 {[%clk 0:02:23.8]} 40. Bxc4 {[%clk
0:02:11.6]} 40... Bc6 {[%clk 0:02:17.9]} 41. Re5 {[%clk 0:02:08.8]} 41... Kf6
{[%clk 0:02:17.4]} 42. Bd3 {[%clk 0:02:09]} 42... Re6 {[%clk 0:02:01.1]} 43. Kd4
{[%clk 0:02:05.5]} 43... Rxe5 {[%clk 0:02:00.4]} 44. fxe5+ {[%clk 0:02:06.7]}
44... Kg5 {[%clk 0:02:02.3]} 45. e6 {[%clk 0:01:58.7]} 45... Kf6 {[%clk
0:01:55.9]} 46. e7 {[%clk 0:01:54.8]} 46... Bxa4 {[%clk 0:01:50.9]} 47. Ke3
{[%clk 0:01:47.7]} 47... Kg5 {[%clk 0:01:33.9]} 48. b4 {[%clk 0:01:35.2]} 48...
axb4 {[%clk 0:01:34]} 49. cxb4 {[%clk 0:01:36.4]} 49... Be8 {[%clk 0:01:34.3]}
50. Bc4 {[%clk 0:01:25.9]} 50... h5 {[%clk 0:01:32.3]} 51. Bd5 {[%clk
0:01:23.7]} 51... Kf6 {[%clk 0:01:02.6]} 52. Kf4 {[%clk 0:01:23.3]} 52... Kxe7
{[%clk 0:01:04.2]} 53. Kxf5 {[%clk 0:01:22.7]} 53... Kd6 {[%clk 0:01:04.2]} 54.
Bg8 {[%clk 0:01:08.1]} 54... Bd7+ {[%clk 0:00:35]} 55. Kf4 {[%clk 0:01:03.8]}
55... Be8 {[%clk 0:00:31]} 56. Bc4 {[%clk 0:01:01.4]} 56... b5 {[%clk
0:00:29.9]} 57. Bb3 {[%clk 0:00:59.4]} 57... Bc6 {[%clk 0:00:25.8]} 58. Bf7
{[%clk 0:00:58.7]} 58... Bf3 {[%clk 0:00:24.8]} 59. Bxh5 {[%clk 0:00:58.1]}
59... Kd5 {[%clk 0:00:26.2]} 60. Bxg4 {[%clk 0:00:36.8]} 60... Bxg4 {[%clk
0:00:27]} 61. Kxg4 {[%clk 0:00:37.9]} 61... Kc4 {[%clk 0:00:28.9]} 62. Kf4
{[%clk 0:00:34.5]} 62... Kxb4 {[%clk 0:00:30.8]} 63. g4 {[%clk 0:00:35.9]} 63...
Ka3 {[%clk 0:00:31.2]} 64. g5 {[%clk 0:00:36.6]} 64... b4 {[%clk 0:00:33.1]} 65.
g6 {[%clk 0:00:38.1]} 65... b3 {[%clk 0:00:35]} 66. g7 {[%clk 0:00:39.6]} 66...
b2 {[%clk 0:00:36.6]} 67. g8=Q {[%clk 0:00:40.8]} 67... b1=Q {[%clk 0:00:36.7]}
1/2-1/2

[Event "*** Titled Tuesday 3|2 Blitz"]
[Site "Chess.com"]
[Date "2015.10.06"]
[Round "4"]
[White "kesarev"]
[Black "jcibarra"]
[Result "1/2-1/2"]
[WhiteElo "2181"]
[BlackElo "2487"]
[TimeControl "180+2"]
[EndTime "11:52:11 PDT"]
[Termination "Game drawn - insufficient material"]

1. Nf3 {[%clk 0:03:01.9]} 1... Nf6 {[%clk 0:02:57.1]} 2. c4 {[%clk 0:03:02.4]}
2... d6 {[%clk 0:02:58.1]} 3. d4 {[%clk 0:03:00.3]} 3... g6 {[%clk 0:02:58.8]}
4. Nc3 {[%clk 0:03:00.8]} 4... Bf5 {[%clk 0:03:00.2]} 5. h3 {[%clk 0:02:46.7]}
5... Ne4 {[%clk 0:03:00.9]} 6. g4 {[%clk 0:02:45.2]} 6... Nxc3 {[%clk
0:03:01.6]} 7. bxc3 {[%clk 0:02:42.8]} 7... Be4 {[%clk 0:03:03.1]} 8. Bg2 {[%clk
0:02:43.1]} 8... Bg7 {[%clk 0:03:04.6]} 9. O-O {[%clk 0:02:40.5]} 9... O-O
{[%clk 0:03:06.1]} 10. Bg5 {[%clk 0:02:36.1]} 10... c5 {[%clk 0:03:06.7]} 11.
dxc5 {[%clk 0:02:21.5]} 11... dxc5 {[%clk 0:03:00.2]} 12. Qxd8 {[%clk
0:02:20.7]} 12... Rxd8 {[%clk 0:03:02.1]} 13. Bxe7 {[%clk 0:02:20.9]} 13... Rc8
{[%clk 0:03:03.2]} 14. Rad1 {[%clk 0:02:13.9]} 14... Bxc3 {[%clk 0:02:55.6]} 15.
Ng5 {[%clk 0:02:01.8]} 15... Bxg2 {[%clk 0:02:54.9]} 16. Kxg2 {[%clk 0:02:02.6]}
16... Nc6 {[%clk 0:02:29.4]} 17. Bxc5 {[%clk 0:02:01.3]} 17... Ne5 {[%clk
0:02:21.8]} 18. Bd4 {[%clk 0:01:34.3]} 18... Rxc4 {[%clk 0:01:44.3]} 19. Bxc3
{[%clk 0:01:33.5]} 19... Rxc3 {[%clk 0:01:44.9]} 20. Rd5 {[%clk 0:01:32.2]}
20... Re8 {[%clk 0:01:37.7]} 21. Ne4 {[%clk 0:01:21.9]} 21... Rc6 {[%clk
0:01:37.1]} 22. f3 {[%clk 0:01:18.9]} 22... Nc4 {[%clk 0:01:18.1]} 23. Kf2
{[%clk 0:01:16.3]} 23... Kg7 {[%clk 0:01:12]} 24. g5 {[%clk 0:01:16]} 24... Nb6
{[%clk 0:00:54.7]} 25. Ra5 {[%clk 0:01:09]} 25... a6 {[%clk 0:00:54.2]} 26. Rd1
{[%clk 0:01:08.7]} 26... h6 {[%clk 0:00:51.1]} 27. h4 {[%clk 0:01:03.5]} 27...
hxg5 {[%clk 0:00:51.9]} 28. hxg5 {[%clk 0:01:04.2]} 28... Nc4 {[%clk 0:00:39.8]}
29. Rad5 {[%clk 0:01:03.2]} 29... Nb6 {[%clk 0:00:29.5]} 30. Rd8 {[%clk
0:00:57.1]} 30... Rc8 {[%clk 0:00:28.9]} 31. R8d6 {[%clk 0:00:49.4]} 31... Rc6
{[%clk 0:00:24.1]} 32. Rxc6 {[%clk 0:00:41.1]} 32... bxc6 {[%clk 0:00:26]} 33.
Rd6 {[%clk 0:00:38.9]} 33... Rc8 {[%clk 0:00:25.8]} 34. Nc5 {[%clk 0:00:39.5]}
34... a5 {[%clk 0:00:25.8]} 35. Kg3 {[%clk 0:00:38.2]} 35... Kf8 {[%clk
0:00:24.7]} 36. Kf4 {[%clk 0:00:36.1]} 36... Ke7 {[%clk 0:00:22]} 37. Rd4 {[%clk
0:00:36.8]} 37... Nd5+ {[%clk 0:00:23.2]} 38. Ke5 {[%clk 0:00:36.4]} 38... Re8
{[%clk 0:00:21.3]} 39. e4 {[%clk 0:00:30.6]} 39... Nb4 {[%clk 0:00:20.1]} 40.
Rd7+ {[%clk 0:00:28.7]} 40... Kf8+ {[%clk 0:00:21.2]} 41. Kf6 {[%clk 0:00:30.6]}
41... Rb8 {[%clk 0:00:16.2]} 42. Rxf7+ {[%clk 0:00:31]} 42... Kg8 {[%clk
0:00:15.9]} 43. Rg7+ {[%clk 0:00:29.9]} 43... Kh8 {[%clk 0:00:17.1]} 44. Rxg6
{[%clk 0:00:28.9]} 44... Rf8+ {[%clk 0:00:17.7]} 45. Ke5 {[%clk 0:00:27.9]}
45... Rxf3 {[%clk 0:00:19.6]} 46. Rf6 {[%clk 0:00:21.7]} 46... Rg3 {[%clk
0:00:18.6]} 47. g6 {[%clk 0:00:22]} 47... Nxa2 {[%clk 0:00:19.2]} 48. Ke6 {[%clk
0:00:20.8]} 48... Kg7 {[%clk 0:00:19.9]} 49. Ke7 {[%clk 0:00:12.6]} 49... Rxg6
{[%clk 0:00:18.3]} 50. Rxg6+ {[%clk 0:00:13.2]} 50... Kxg6 {[%clk 0:00:19.5]}
51. Kd6 {[%clk 0:00:15.1]} 51... Nb4 {[%clk 0:00:19.5]} 52. e5 {[%clk 0:00:17]}
52... Kf7 {[%clk 0:00:20.9]} 53. e6+ {[%clk 0:00:18.1]} 53... Ke8 {[%clk
0:00:21.9]} 54. Ne4 {[%clk 0:00:17]} 54... Nd5 {[%clk 0:00:22.5]} 55. Kxc6
{[%clk 0:00:17.1]} 55... Nf4 {[%clk 0:00:23.8]} 56. Nc5 {[%clk 0:00:16.9]} 56...
Ke7 {[%clk 0:00:23.2]} 57. Kb5 {[%clk 0:00:17.5]} 57... Kd6 {[%clk 0:00:24.5]}
58. Kxa5 {[%clk 0:00:16.7]} 58... Nxe6 {[%clk 0:00:22.8]} 59. Nxe6 {[%clk
0:00:17.4]} 1/2-1/2